fUSD/lending_fUSD_20240804
["ID","MTS","AMOUNT","RATE_DAILY","PERIOD"]
[334130978,1722789127142,-500.0,0.00023506,9]
[334130979,1722789127151,-500.0,0.00023506,9]
[334130980,1722789127161,-3717.54,0.00023506,9]
[334130981,1722789127172,-500.0,0.00023506,9]
[334130982,1722789127183,-884.84,0.00023506,9]
[334130983,1722789127193,-500.0,0.00023506,9]
[334130984,1722789127202,-500.0,0.00023506,9]
[334130985,1722789127212,-500.0,0.00023506,9]
[334130986,1722789127227,-151.0,0.00023506,7]
[334130987,1722789127238,-500.0,0.00023506,9]
[334130988,1722789127248,-580.87,0.00023506,9]
[334130989,1722789127258,-500.0,0.00023506,9]
[334130990,1722789127268,-3092.5,0.00023506,9]
[334130991,1722789127278,-1380.41,0.00023506,9]
[334130992,1722789127288,-500.0,0.00023506,9]
[334130993,1722789127297,-1525.48,0.00023506,9]
[334130994,1722789127308,-500.0,0.00023506,9]
[334130995,1722789127318,-500.0,0.00023506,9]
[334130996,1722789127328,-735.29,0.00023506,9]
[334130997,1722789127338,-500.0,0.00023506,9]
[334130998,1722789127347,-1651.73,0.00023506,9]
[334130999,1722789127357,-500.0,0.00023506,9]
[334131000,1722789127368,-1424.91,0.00023506,9]
[334131001,1722789127378,-511.18,0.00023506,9]
[334131002,1722789127389,-9291.65,0.00023506,9]
[334131003,1722789127399,-500.0,0.00023506,9]
[334131004,1722789127410,-500.0,0.00023506,9]
[334131005,1722789127420,-668.08,0.00023506,9]
[334131006,1722789127430,-1800.64,0.00023506,9]
[334131007,1722789127441,-1076.82,0.00023506,9]
[334131008,1722789127451,-1604.95,0.00023506,9]
[334131009,1722789127461,-696.11,0.00023506,9]
[334131010,1722789127471,-840.83,0.00023506,9]
[334131011,1722789127481,-734.28,0.00023506,9]
[334131012,1722789127491,-500.0,0.00023506,9]
[334131013,1722789127501,-500.0,0.00023506,9]
[334131014,1722789127511,-500.0,0.00023506,9]
[334131015,1722789127520,-580.56,0.00023506,9]
[334131016,1722789127530,-318.69,0.00023506,9]
[334131017,1722789127541,-1654.23,0.00023506,9]
[334131018,1722789127551,-728.39,0.00023506,9]
[334131019,1722789127561,-932.72,0.00023506,9]
[334131020,1722789127571,-500.0,0.00023506,9]
[334131021,1722789127581,-610.42,0.00023506,9]
[334131022,1722789127591,-716.95,0.00023506,9]
[334131023,1722789127601,-652.16,0.00023506,9]
[334131024,1722789127611,-509.23,0.00023506,9]
[334131025,1722789127621,-500.0,0.00023506,9]
[334131026,1722789127631,-1421.84,0.00023506,9]
[334131027,1722789127641,-350.82115536,0.00023506,9]
[334131028,1722789127651,-1831.37,0.00023506,9]
[334131029,1722789127662,-9159.33,0.00023506,9]
[334131030,1722789127672,-500.0,0.00023506,9]
[334131031,1722789127682,-24340.79,0.00023506,9]
[334131032,1722789127691,-500.0,0.00023506,9]
[334131033,1722789127701,-500.0,0.00023506,9]
[334131034,1722789127711,-500.0,0.00023506,9]
[334131035,1722789127722,-500.0,0.00023506,9]
[334131036,1722789127732,-500.0,0.00023506,9]
[334131037,1722789127742,-696.26,0.00023506,9]
[334131038,1722789127752,-500.0,0.00023506,9]
[334131039,1722789127763,-2392.07,0.00023506,9]
[334131040,1722789127773,-6117.15,0.00023506,9]
[334131041,1722789127783,-500.0,0.00023506,9]
[334131042,1722789127794,-1134.1,0.00023506,9]
[334131043,1722789127804,-2627.33,0.00023506,9]
[334131044,1722789127814,-871.99,0.00023506,9]
[334131045,1722789127824,-771.73,0.00023506,9]
[334131046,1722789127834,-329.12,0.00023506,9]
[334131047,1722789127844,-544.49,0.00023506,9]
[334131048,1722789127854,-6002.83,0.00023506,9]
[334131049,1722789127865,-286.46,0.00023506,9]
[334131050,1722789127875,-500.0,0.00023506,9]
[334131051,1722789127885,-11888.09,0.00023506,9]
[334131052,1722789127895,-791.38,0.00023506,9]
[334131053,1722789127906,-500.0,0.00023506,9]
[334131054,1722789127916,-500.0,0.00023506,9]
[334131055,1722789127926,-500.0,0.00023506,9]
[334131056,1722789127936,-500.0,0.00023506,9]
[334131057,1722789127946,-944.27,0.00023506,9]
[334131058,1722789127956,-1585.57,0.00023506,9]
[334131059,1722789127968,-4038.41,0.00023506,9]
[334131060,1722789127978,-608.31,0.00023506,9]
[334131061,1722789127988,-1194.13,0.00023506,9]
[334131062,1722789127999,-1646.59,0.00023506,9]
[334131063,1722789128009,-949.11,0.00023506,9]
[334131064,1722789128020,-500.0,0.00023506,9]
[334131065,1722789128030,-2124.99,0.00023506,9]
[334131066,1722789128040,-1277.47,0.00023506,9]
[334131067,1722789128049,-500.0,0.00023506,9]
[334131068,1722789128060,-577.85,0.00023506,9]
[334131069,1722789128070,-2060.41,0.00023506,9]
[334131070,1722789128080,-5462.19,0.00023506,9]
[334131071,1722789128091,-1732.64,0.00023506,9]
[334131072,1722789128101,-561.00657703,0.00023506,9]
[334131073,1722789128111,-500.0,0.00023506,9]
[334131074,1722789128121,-521.89,0.00023506,9]
[334131075,1722789128131,-1091.18,0.00023506,9]
[334131076,1722789128141,-500.0,0.00023506,9]
[334131077,1722789128151,-544.49,0.00023506,9]
[334131078,1722789128162,-500.0,0.00023506,9]
[334131079,1722789128174,-500.0,0.00023506,9]
[334131080,1722789128184,-564.87,0.00023506,9]
[334131081,1722789128427,-15172.23,0.00023506,9]
[334131082,1722789128438,-4452.48,0.00023506,9]
[334131083,1722789128449,-500.0,0.00023506,9]
[334131084,1722789128459,-851.31,0.00023506,9]
[334131085,1722789128470,-1441.44,0.00023506,9]
[334131086,1722789128480,-2716.36,0.00023506,9]
[334131087,1722789128490,-584.6,0.00023506,9]
[334131088,1722789128499,-500.0,0.00023506,9]
[334131089,1722789128509,-1571.23,0.00023506,9]
[334131090,1722789128519,-574.32,0.00023506,9]
[334131091,1722789128528,-500.0,0.00023506,9]
[334131092,1722789128538,-500.0,0.00023506,9]
[334131093,1722789128547,-1778.849832,0.00023506,7]
[334131094,1722789128557,-500.0,0.00023506,9]
[334131095,1722789128567,-703.47,0.00023506,9]
[334131096,1722789128577,-1021.22,0.00023506,9]
[334131097,1722789128586,-1535.24,0.00023506,9]
[334131098,1722789128595,-1291.6,0.00023506,9]
[334131099,1722789128605,-1778.849832,0.00023506,7]
[334131100,1722789128615,-763.08,0.00023506,9]
[334131101,1722789128624,-5391.24,0.00023506,9]
[334131102,1722789128633,-1354.84,0.00023506,9]
[334131103,1722789128642,-584.33,0.00023506,9]
[334131104,1722789128652,-500.0,0.00023506,9]
[334131105,1722789128661,-709.22,0.00023506,9]
[334131106,1722789128671,-500.0,0.00023506,9]
[334131107,1722789128681,-2713.37,0.00023506,9]
[334131108,1722789128691,-2249.61,0.00023506,9]
[334131109,1722789128700,-995.02,0.00023506,9]
[334131110,1722789128710,-3893.64,0.00023506,9]
[334131111,1722789128720,-500.0,0.00023506,9]
[334131112,1722789128729,-500.0,0.00023506,9]
[334131113,1722789128739,-892.75,0.00023506,9]
[334131114,1722789128749,-605.15,0.00023506,9]
[334131115,1722789128758,-1131.9,0.00023506,9]
[334131116,1722789128767,-2837.07,0.00023506,9]
[334131117,1722789128777,-253.193013,0.00023506,7]
[334131118,1722789128787,-500.0,0.00023506,9]
[334131119,1722789128797,-1059.61,0.00023506,9]
[334131120,1722789128807,-901.69,0.00023506,9]
[334131121,1722789128817,-253.193013,0.00023506,7]
[334131122,1722789128826,-873.69,0.00023506,9]
[334131123,1722789128837,-500.0,0.00023506,9]
[334131124,1722789128846,-500.0,0.00023506,9]
[334131125,1722789128856,-1120.25,0.00023506,9]
[334131126,1722789128867,-1475.32,0.00023506,9]
[334131127,1722789128876,-500.0,0.00023506,9]
[334131128,1722789128886,-205.00240302,0.00023506,9]
[334131129,1722789128896,-6849.94,0.00023506,9]
[334131130,1722789128906,-2285.11,0.00023506,9]
[334131131,1722789128915,-1520.63,0.00023506,9]
[334131132,1722789128925,-645.98,0.00023506,9]
[334131133,1722789128935,-1055.9,0.00023506,9]
[334131134,1722789128944,-302.67,0.00023506,9]
[334131135,1722789128954,-500.0,0.00023506,9]
[334131136,1722789128964,-616.71440832,0.00023506,9]
[334131137,1722789128974,-500.0,0.00023506,9]
[334131138,1722789128984,-612.9797821,0.00023506,9]
[334131139,1722789128994,-4923.42,0.00023506,9]
[334131140,1722789129004,-500.0,0.00023506,9]
[334131141,1722789129013,-1211.89,0.00023506,9]
[334131142,1722789129023,-1860.21,0.00023506,9]
[334131143,1722789129032,-500.0,0.00023506,9]
[334131144,1722789129042,-151.0,0.00023506,7]
[334131145,1722789129052,-2498.66,0.00023506,9]
[334131146,1722789129062,-500.0,0.00023506,9]
[334131147,1722789129072,-723.93,0.00023506,9]
[334131148,1722789129082,-2543.95,0.00023506,9]
[334131149,1722789129091,-781.57,0.00023506,9]
[334131150,1722789129101,-1321.62,0.00023506,9]
[334131151,1722789129110,-1395.06,0.00023506,9]
[334131152,1722789129120,-1624.5,0.00023506,9]
[334131153,1722789129130,-1415.76,0.00023506,9]
[334131154,1722789129139,-1413.44,0.00023506,9]
[334131155,1722789129149,-500.0,0.00023506,9]
[334131156,1722789129159,-500.0,0.00023506,9]
[334131157,1722789129171,-1456.38,0.00023506,9]
[334131158,1722789129182,-1356.63,0.00023506,9]
[334131159,1722789129191,-911.83,0.00023506,9]
[334131160,1722789129201,-500.0,0.00023506,9]
[334131161,1722789129211,-500.0,0.00023506,9]
[334131162,1722789129221,-900.99,0.00023506,9]
[334131163,1722789129230,-500.0,0.00023506,9]
[334131164,1722789129240,-1747.36,0.00023506,9]
[334131165,1722789129251,-2014.48,0.00023506,9]
[334131166,1722789129261,-2308.05,0.00023506,9]
[334131167,1722789129270,-500.0,0.00023506,9]
[334131168,1722789129279,-500.0,0.00023506,9]
[334131169,1722789129289,-2084.47,0.00023506,9]
[334131170,1722789129298,-3204.33,0.00023506,9]
[334131171,1722789129308,-500.0,0.00023506,9]
[334131172,1722789129317,-500.0,0.00023506,9]
[334131173,1722789129327,-1114.5,0.00023506,9]
[334131174,1722789129337,-500.0,0.00023506,9]
[334131175,1722789129347,-782.31,0.00023506,9]
[334131176,1722789129357,-1467.0,0.00023506,9]
[334131177,1722789129366,-1170.79,0.00023506,9]
[334131178,1722789129376,-1027.92,0.00023506,9]
[334131179,1722789129385,-500.0,0.00023506,9]
[334131180,1722789129394,-584.12,0.00023506,9]
[334131181,1722789129404,-1503.19,0.00023506,9]
[334131182,1722789129413,-500.0,0.00023506,9]
[334131183,1722789129423,-500.0,0.00023506,9]
[334131184,1722789129433,-2370.59,0.00023506,9]
[334131185,1722789129443,-8526.84,0.00023506,9]
[334131186,1722789129454,-2115.13,0.00023506,9]
[334131187,1722789129463,-931.26,0.00023506,9]
[334131188,1722789129473,-500.0,0.00023506,9]
[334131189,1722789129483,-500.0,0.00023506,9]
[334131190,1722789129493,-792.92,0.00023506,9]
[334131191,1722789129504,-500.0,0.00023506,9]
[334131192,1722789129514,-500.0,0.00023506,9]
[334131193,1722789129524,-500.0,0.00023506,9]
[334131194,1722789129535,-500.0,0.00023506,9]
[334131195,1722789129545,-500.0,0.00023506,9]
[334131196,1722789129555,-1212.39,0.00023506,9]
[334131197,1722789129565,-1614.2,0.00023506,9]
[334131198,1722789129575,-2872.78,0.00023506,9]
[334131199,1722789129586,-500.0,0.00023506,9]
[334131200,1722789129596,-940.66,0.00023506,9]
[334131201,1722789129606,-720.05,0.00023506,9]
[334131202,1722789129616,-500.0,0.00023506,9]
[334131203,1722789129626,-2278.54,0.00023506,9]
[334131204,1722789129636,-1140.48,0.00023506,9]
[334131205,1722789129646,-1064.77,0.00023506,9]
[334131206,1722789129656,-500.0,0.00023506,9]
[334131207,1722789129666,-500.0,0.00023506,9]
[334131208,1722789129676,-2298.73,0.00023506,9]
[334131209,1722789129686,-500.0,0.00023506,9]
[334131210,1722789129696,-664.1,0.00023506,9]
[334131211,1722789129706,-952.32,0.00023506,9]
[334131212,1722789129716,-1168.02,0.00023506,9]
[334131213,1722789129726,-1420.45,0.00023506,9]
[334131214,1722789129736,-500.0,0.00023506,9]
[334131215,1722789129746,-735.18,0.00023506,9]
[334131216,1722789129755,-500.0,0.00023506,9]
[334131217,1722789129765,-500.0,0.00023506,9]
[334131218,1722789129775,-500.0,0.00023506,9]
[334131219,1722789129784,-500.0,0.00023561,2]
[334131220,1722789129794,-500.0,0.00023561,2]
[334131221,1722789129804,-500.0,0.00023561,2]
[334131222,1722789129813,-500.0,0.00023561,2]
[334131223,1722789129823,-500.0,0.00023561,2]
[334131224,1722789129833,-500.0,0.00023561,2]
[334131225,1722789129842,-500.0,0.00023561,2]
[334131226,1722789129852,-500.0,0.00023561,2]
[334131227,1722789129862,-500.0,0.00023561,2]
[334131228,1722789129872,-500.0,0.00023561,2]
[334131229,1722789129881,-500.0,0.00023561,2]
[334131230,1722789129891,-500.0,0.00023561,2]
[334131231,1722789129901,-500.0,0.00023561,2]
[334131232,1722789129910,-500.0,0.00023561,2]
[334131233,1722789129921,-500.0,0.00023561,2]
[334131234,1722789129930,-500.0,0.00023561,2]
[334131235,1722789129940,-500.0,0.00023561,2]
[334131236,1722789129949,-500.0,0.00023561,2]
[334131237,1722789129958,-293.7,0.00023561,2]
[334131238,1722789129968,-2337.51,0.00023589,2]
[334131239,1722789129978,-500.0,0.00023589,9]
[334131240,1722789129987,-500.0,0.00023589,9]
[334131241,1722789129996,-500.0,0.00023589,9]
[334131242,1722789130006,-500.0,0.00023589,9]
[334131243,1722789130015,-500.0,0.00023589,9]
[334131244,1722789130025,-500.0,0.00023589,9]
[334131245,1722789130034,-500.0,0.00023589,9]
[334131246,1722789130043,-500.0,0.00023589,9]
[334131247,1722789130052,-238.95,0.00023589,9]
[334131248,1722789130061,-500.0,0.00023589,9]
[334131249,1722789130071,-500.0,0.00023589,9]
[334131250,1722789130080,-500.0,0.00023589,9]
[334131251,1722789130090,-153.33,0.00023589,9]
[334131252,1722789130099,-500.0,0.00023589,9]
[334131253,1722789130107,-502.62,0.00023589,9]
[334131254,1722789130116,-478.26,0.00023589,9]
[334131255,1722789130126,-222.42,0.00023589,9]
[334131256,1722789130135,-500.0,0.00023589,9]
[334131257,1722789130149,-500.0,0.00023589,9]
[334131258,1722789130160,-730.08,0.00023589,9]
[334131259,1722789130170,-500.0,0.00023589,9]
[334131260,1722789130181,-607.98453999,0.00023589,9]
[334131261,1722789130192,-500.0,0.00023589,9]
[334131262,1722789130202,-500.0,0.00023589,9]
[334131263,1722789130212,-500.0,0.00023589,9]
[334131264,1722789130222,-588.86,0.00023589,9]
[334131265,1722789130233,-500.0,0.00023589,9]
[334131266,1722789130243,-500.0,0.00023589,9]
[334131267,1722789130253,-500.0,0.00023589,9]
[334131268,1722789130264,-500.0,0.00023589,9]
[334131269,1722789130275,-850.72,0.00023589,9]
[334131270,1722789130284,-500.0,0.00023589,9]
[334131271,1722789130294,-760.21,0.00023589,9]
[334131272,1722789130304,-626.04,0.00023589,9]
[334131273,1722789130314,-500.0,0.00023589,9]
[334131274,1722789130324,-622.56639142,0.00023589,9]
[334131275,1722789130334,-500.0,0.00023589,9]
[334131276,1722789130342,-500.0,0.00023589,9]
[334131277,1722789130352,-241.26427841,0.00023589,9]
[334131278,1722789130361,-500.0,0.00023589,9]
[334131279,1722789130371,-500.0,0.00023589,9]
[334131280,1722789130380,-561.46,0.00023589,9]
[334131281,1722789130390,-500.0,0.00023589,9]
[334131282,1722789130399,-500.0,0.00023589,9]
[334131283,1722789130409,-500.0,0.00023589,9]
[334131284,1722789130418,-500.0,0.00023589,9]
[334131285,1722789130428,-500.0,0.00023589,9]
[334131286,1722789130438,-550.62,0.00023589,9]
[334131287,1722789130447,-500.0,0.00023589,9]
[334131288,1722789130456,-500.0,0.00023589,9]
[334131289,1722789130465,-248.76704901,0.00023589,9]
[334131290,1722789130475,-500.0,0.00023589,9]
[334131291,1722789130484,-500.0,0.00023589,9]
[334131292,1722789130493,-500.0,0.00023589,9]
[334131293,1722789130502,-501.49392554,0.00023589,9]
[334131294,1722789130512,-500.0,0.00023589,9]
[334131295,1722789130521,-500.0,0.00023589,9]
[334131296,1722789130530,-500.0,0.00023589,9]
[334131297,1722789130539,-500.0,0.00023589,9]
[334131298,1722789130549,-500.0,0.00023589,9]
[334131299,1722789130558,-591.33,0.00023589,9]
[334131300,1722789130567,-1011.69,0.00023589,9]
[334131301,1722789130576,-186.68203916,0.00023589,9]
[334131302,1722789130585,-511.64,0.00023589,9]
[334131303,1722789130595,-500.0,0.00023589,9]
[334131304,1722789130605,-312.88658193,0.00023589,9]
[334131305,1722789130614,-500.0,0.00023589,9]
[334131306,1722789130623,-559.06,0.00023589,9]
[334131307,1722789130633,-702.5,0.00023589,9]
[334131308,1722789130653,-500.0,0.00023589,9]
[334131309,1722789130663,-500.0,0.00023589,9]
[334131310,1722789130672,-500.0,0.00023589,9]
[334131311,1722789130681,-500.0,0.00023589,9]
[334131312,1722789130696,-646.51,0.00023589,9]
[334131313,1722789130705,-500.0,0.00023589,9]
[334131314,1722789130715,-1314.76,0.00023589,9]
[334131315,1722789130724,-500.0,0.00023589,9]
[334131316,1722789130733,-500.0,0.00023589,9]
[334131317,1722789130743,-500.0,0.00023589,9]
[334131318,1722789130752,-532.71,0.00023589,9]
[334131319,1722789130851,-500.0,0.00023589,9]
[334131320,1722789130862,-721.27,0.00023589,9]
[334131321,1722789130871,-500.0,0.00023589,9]
[334131322,1722789130880,-500.0,0.00023589,9]
[334131323,1722789130890,-500.0,0.00023589,9]
[334131324,1722789130900,-500.0,0.00023589,9]
[334131325,1722789130909,-500.0,0.00023589,9]
[334131326,1722789130918,-500.0,0.00023589,9]
[334131327,1722789130927,-540.98,0.00023589,9]
[334131328,1722789130936,-529.4,0.00023589,9]
[334131329,1722789130945,-500.0,0.00023589,9]
[334131330,1722789130954,-500.0,0.00023589,9]
[334131331,1722789130963,-500.0,0.00023589,9]
[334131332,1722789130972,-521.65,0.00023589,9]
[334131333,1722789130981,-831.69,0.00023589,9]
[334131334,1722789130990,-785.3,0.00023589,9]
[334131335,1722789130999,-500.0,0.00023589,9]
[334131336,1722789131009,-780.18,0.00023589,9]
[334131337,1722789131018,-500.0,0.00023589,9]
[334131338,1722789131027,-500.0,0.00023589,9]
[334131339,1722789131037,-500.0,0.00023589,9]
[334131340,1722789131046,-500.0,0.00023589,9]
[334131341,1722789131055,-500.0,0.00023589,9]
[334131342,1722789131065,-500.0,0.00023589,9]
[334131343,1722789131074,-500.0,0.00023589,9]
[334131344,1722789131083,-559.95,0.00023589,9]
[334131345,1722789131092,-500.0,0.00023589,9]
[334131346,1722789131101,-1164.15,0.00023589,9]
[334131347,1722789131110,-995.62,0.00023589,9]
[334131348,1722789131119,-500.0,0.00023589,9]
[334131349,1722789131129,-238.09,0.00023589,9]
[334131350,1722789131138,-500.0,0.00023589,9]
[334131351,1722789131147,-576.22,0.00023589,9]
[334131352,1722789131156,-500.0,0.00023589,9]
[334131353,1722789131165,-543.19,0.00023589,9]
[334131354,1722789131174,-500.0,0.00023589,9]
[334131355,1722789131187,-500.0,0.00023589,9]
[334131356,1722789131197,-500.0,0.00023589,9]
[334131357,1722789131206,-500.0,0.00023589,9]
[334131358,1722789131216,-500.0,0.00023589,9]
[334131359,1722789131226,-500.0,0.00023589,9]
[334131360,1722789131236,-500.0,0.00023589,9]
[334131361,1722789131246,-500.0,0.00023589,9]
[334131362,1722789131256,-599.57,0.00023589,2]
[334131363,1722789131265,-500.0,0.00023589,9]
[334131364,1722789131275,-500.0,0.00023589,9]
[334131365,1722789131284,-500.0,0.00023589,9]
[334131366,1722789131294,-500.0,0.00023589,9]
[334131367,1722789131304,-500.0,0.00023589,9]
[334131368,1722789131314,-500.0,0.00023589,9]
[334131369,1722789131323,-550.63,0.00023589,7]
[334131370,1722789131333,-500.0,0.00023589,9]
[334131371,1722789131342,-603.97,0.00023589,9]
[334131372,1722789131351,-500.0,0.00023589,9]
[334131373,1722789131360,-500.0,0.00023589,9]
[334131374,1722789131370,-579.69,0.00023589,9]
[334131375,1722789131380,-526.37,0.00023589,9]
[334131376,1722789131389,-519.43,0.00023589,9]
[334131377,1722789131398,-500.0,0.00023589,9]
[334131378,1722789131408,-500.0,0.00023589,9]
[334131379,1722789131417,-500.0,0.00023589,9]
[334131380,1722789131427,-489.37,0.00023589,9]
[334131381,1722789131436,-500.0,0.00023589,9]
[334131382,1722789131446,-500.0,0.00023589,9]
[334131383,1722789131456,-500.0,0.00023589,9]
[334131384,1722789131466,-500.0,0.00023589,9]
[334131385,1722789131475,-513.52,0.00023589,9]
[334131386,1722789131485,-500.0,0.00023589,9]
[334131387,1722789131494,-500.0,0.00023589,9]
[334131388,1722789131504,-500.0,0.00023589,9]
[334131389,1722789131513,-500.0,0.00023589,9]
[334131390,1722789131522,-500.0,0.00023589,9]
[334131391,1722789131531,-545.7,0.00023589,9]
[334131392,1722789131540,-500.0,0.00023589,9]
[334131393,1722789131549,-500.0,0.00023589,9]
[334131394,1722789131558,-500.0,0.00023589,9]
[334131395,1722789131567,-500.0,0.00023589,9]
[334131396,1722789131576,-500.0,0.00023589,9]
[334131397,1722789131586,-500.0,0.00023589,9]
[334131398,1722789131595,-500.0,0.00023589,9]
[334131399,1722789131605,-500.0,0.00023589,9]
[334131400,1722789131614,-500.0,0.00023589,9]
[334131401,1722789131624,-497.09061732,0.00023589,9]
[334131402,1722789131633,-500.0,0.00023589,9]
[334131403,1722789131643,-500.0,0.00023589,9]
[334131404,1722789131652,-572.51,0.00023589,9]
[334131405,1722789131660,-466.34,0.00023589,9]
[334131406,1722789131669,-500.0,0.00023589,9]
[334131407,1722789131680,-500.0,0.00023589,9]
[334131408,1722789131689,-500.0,0.00023589,9]
[334131409,1722789131698,-500.0,0.00023589,9]
[334131410,1722789131707,-500.0,0.00023589,9]
[334131411,1722789131717,-440.15,0.00023589,9]
[334131412,1722789131726,-500.0,0.00023589,9]
[334131413,1722789131736,-500.0,0.00023589,9]
[334131414,1722789131745,-500.0,0.00023589,9]
[334131415,1722789131755,-589.88,0.00023589,9]
[334131416,1722789131764,-500.0,0.00023589,9]
[334131417,1722789131774,-540.33,0.00023589,9]
[334131418,1722789131783,-509.22,0.00023589,9]
[334131419,1722789131793,-500.0,0.00023589,9]
[334131420,1722789131803,-500.0,0.00023589,9]
[334131421,1722789131812,-500.0,0.00023589,9]
[334131422,1722789131821,-500.0,0.00023589,9]
[334131423,1722789131831,-643.51,0.00023589,9]
[334131424,1722789131839,-500.0,0.00023589,9]
[334131425,1722789131849,-500.0,0.00023589,9]
[334131426,1722789131858,-531.27,0.00023589,9]
[334131427,1722789131867,-672.45,0.00023589,9]
[334131428,1722789131877,-500.0,0.00023589,9]
[334131429,1722789131886,-500.0,0.00023589,9]
[334131430,1722789131895,-301.60211643,0.00023589,9]
[334131431,1722789131905,-512.0,0.00023589,9]
[334131432,1722789131915,-500.0,0.00023589,9]
[334131433,1722789131925,-500.0,0.00023589,9]
[334131434,1722789131934,-500.0,0.00023589,9]
[334131435,1722789131943,-500.0,0.00023589,9]
[334131436,1722789131953,-500.0,0.00023589,9]
[334131437,1722789131962,-500.0,0.00023589,9]
[334131438,1722789131971,-500.0,0.00023589,9]
[334131439,1722789131981,-500.0,0.00023589,9]
[334131440,1722789131990,-500.0,0.00023589,9]
[334131441,1722789131999,-500.0,0.00023589,9]
[334131442,1722789132008,-500.0,0.00023589,9]
[334131443,1722789132017,-500.0,0.00023589,9]
[334131444,1722789132027,-500.0,0.00023589,9]
[334131445,1722789132036,-500.0,0.00023589,9]
[334131446,1722789132046,-558.03,0.00023589,9]
[334131447,1722789132056,-500.0,0.00023589,9]
[334131448,1722789132066,-864.98,0.00023589,9]
[334131449,1722789132075,-510.16,0.00023589,9]
[334131450,1722789132084,-522.61,0.00023589,9]
[334131451,1722789132093,-1944.23,0.00023589,9]
[334131452,1722789132102,-500.0,0.00023589,9]
[334131453,1722789132112,-500.0,0.00023589,9]
[334131454,1722789132121,-500.0,0.00023589,9]
[334131455,1722789132129,-500.0,0.00023589,9]
[334131456,1722789132139,-500.0,0.00023589,9]
[334131457,1722789132148,-500.0,0.00023589,9]
[334131458,1722789132158,-500.0,0.00023589,9]
[334131459,1722789132167,-500.0,0.00023589,9]
[334131460,1722789132182,-500.0,0.00023589,9]
[334131461,1722789132192,-500.0,0.00023589,9]
[334131462,1722789132202,-500.0,0.00023589,9]
[334131463,1722789132211,-520.15,0.00023589,9]
[334131464,1722789132221,-500.0,0.00023589,9]
[334131465,1722789132230,-500.0,0.00023589,9]
[334131466,1722789132239,-500.0,0.00023589,9]
[334131467,1722789132248,-500.0,0.00023589,9]
[334131468,1722789132257,-546.11,0.00023589,9]
[334131469,1722789132268,-500.0,0.00023589,9]
[334131470,1722789132278,-500.0,0.00023589,9]
[334131471,1722789132287,-500.0,0.00023589,9]
[334131472,1722789132297,-500.0,0.00023589,9]
[334131473,1722789132306,-226.94,0.00023589,9]
[334131474,1722789132316,-544.54,0.00023589,9]
[334131475,1722789132325,-500.0,0.00023589,9]
[334131476,1722789132335,-500.0,0.00023589,9]
[334131477,1722789132345,-500.0,0.00023589,9]